Cogmind - Beta 11.1 @@@ ROGUE MODE // 2022.05.14 @ 10:30:44 Player: RX86 Result: Destroyed by G-47 Trooper with Particle Gun Performance ------------- Evolutions (0) 0 Regions Visited (2) 400 Robots Destroyed (4) 20 Value Destroyed (32) 32 Prototype IDs (2) 40 Alien Tech Used (0) 0 Bonus (0) 0 TOTAL SCORE: 492 Bonus ------- None Cogmind --------- Core Integrity 0/250 Matter 232/300 Energy 150/150 System Corruption 0% Temperature Cool (15) Movement Walking (120) Location -10/Mines Parts ------- > --- POWER (1) -------- Light Angular Momentum Engine > --- PROPULSION (2) --- Carbon-fiber Leg Carbon-fiber Leg > --- UTILITY (2) ------ Medium Storage Unit ECM Suite > --- WEAPON (2) ------- (None) > --- INVENTORY (10) --- Light Ion Engine Hover Unit Small Storage Unit Signal Interpreter Transport Network Coupler Tractor Beam Shock Trap Shock Trap Shock Trap Peak State ------------ > --- POWER ------------ Light Angular Momentum Engine > --- PROPULSION ------- Carbon-fiber Leg Carbon-fiber Leg > --- UTILITY ---------- Medium Storage Unit ECM Suite > --- WEAPON ----------- (None) > --- INVENTORY -------- Light Ion Engine Hover Unit Small Storage Unit Signal Interpreter Transport Network Coupler Tractor Beam Shock Trap Shock Trap Shock Trap [Rating: 13] Favorites ----------- Power Ion Engine Engine Ion Engine Propulsion Aluminum Leg Leg Aluminum Leg Utility ECM Suite Device ECM Suite Storage Medium Storage Unit Weapon Assault Rifle Ballistic Gun Assault Rifle Special Weapon Welding Torch Build | -11 -10 -10 ------- Run | Scr Mat Min Slots Evolved . | . . . Power . | . . . Propulsion . | . . . Utility . | . . . Weapon . | . . . Parts Attached 17 | 6 6 5 Power 3 | 1 1 1 Engine 3 | 1 1 1 Core . | . . . Reactor . | . . . Propulsion 4 | 2 . 2 Treads . | . . . Leg 4 | 2 . 2 Wheel . | . . . Hover . | . . . Flight . | . . . Utility 5 | 1 2 2 Device 3 | . 1 2 Storage 2 | 1 1 . Processor . | . . . Hackware . | . . . Protection . | . . . Artifact . | . . . Weapon 5 | 2 3 . Energy Gun . | . . . Energy Cannon . | . . . Ballistic Gun 4 | 2 2 . Ballistic Cannon . | . . . Launcher . | . . . Special Weapon 1 | . 1 . Impact Weapon . | . . . Slashing Weapon . | . . . Piercing Weapon . | . . . Special Melee Weapon . | . . . Unidentified Prototypes . | . . . Parts Lost 4 | . . 4 Power . | . . . Propulsion 2 | . . 2 Utility . | . . . Weapon 2 | . . 2 Highest Loss Streak 4 | . . 4 To Critical Strikes . | . . . Average Slot Usage (%) 98 | . 99 97 Engine 14 | . 14 14 Leg 27 | . 28 27 Device 13 | . 13 14 Storage 14 | . 14 14 Ballistic Gun 26 | . 27 25 Naked Turns . | . . . Heaviest Build 21 | 14 21 21 Greatest Support 30 | 20 20 30 Greatest Overweight (x) 1 | 1 1 . Average Overweight (x) . | . . . Largest Inventory Capacity 10 | 8 10 10 Average Capacity 9 | 7 9 10 Most Carried 10 | 4 10 10 Average Carried 8 | 3 7 9 Final Capacity 10 | 8 10 10 Final Carried 10 | 4 10 9 Class Distribution -------------------- 100% | Mutant Dominant Class ---------------- Mutant | -10/Materials Mutant | -10/Mines Resources | -11 -10 -10 ----------- Run | Scr Mat Min Matter Collected 374 | 221 84 69 Remotely . | . . . Salvage Created 102 | . 102 . Parts 7 | . 7 . Haulers Intercepted 1 | . 1 . Recyclers Shooed . | . . . Parts Field Recycled . | . . . Retrieved Matter . | . . . Parts Self-Destructed . | . . . Prevented . | . . . Kills | -11 -10 -10 ------- Run | Scr Mat Min Combat Hostiles Destroyed 3 | . 3 . Guns 3 | . 3 . Classes Destroyed 2 | . 2 . Hauler 1 | . 1 . Swarmer 3 | . 3 . Best Kill Streak 2 | . 2 . Combat Bots Only 2 | . 2 . Max Kills in Single Turn 1 | . 1 . Gunslinging . | . . . Exploded . | . . . Melee . | . . . Uniques/NPCs Destroyed . | . . . Combat | -11 -10 -10 -------- Run | Scr Mat Min Damage Taken 938 | . 468 470 Core 258 | . 98 160 Absorbed by Shields . | . . . Core Remaining (%) 100 | 100 . . Volleys Fired 21 | 4 14 3 Largest 2 | 2 2 2 Hottest 40 | 40 40 40 Shots Fired 37 | 8 23 6 Gun 32 | 8 18 6 Cannon . | . . . Launcher . | . . . Special 5 | . 5 . Kinetic 32 | 8 18 6 Thermal 5 | . 5 . Explosive . | . . . Electromagnetic . | . . . Robot Hit Streak 6 | 1 6 3 Robot Miss Streak 4 | 4 3 1 Penetration Max . | . . . Secondary Targets . | . . . Shots Hit Robots 15 | 2 9 4 Core Hits 7 | 1 5 1 Critical Kills . | . . . Critical Parts Destroyed . | . . . Critical Strikes . | . . . Melee Attacks . | . . . Impact . | . . . Slashing . | . . . Piercing . | . . . Sneak Attacks . | . . . Combat Hostiles . | . . . Follow-up Attacks . | . . . Damage Inflicted 188 | 24 112 52 Guns 188 | 24 112 52 Cannons . | . . . Explosions . | . . . Melee . | . . . Ramming . | . . . Kinetic 188 | 24 112 52 Thermal . | . . . Explosive . | . . . Electromagnetic . | . . . Impact . | . . . Slashing . | . . . Piercing . | . . . Highest Corruption . | . . . Average Corruption . | . . . Corruption Purged . | . . . Corruption Blocked . | . . . Overload Shots . | . . . Overflow Damage . | . . . Projectiles . | . . . Explosions . | . . . Melee . | . . . Knockbacks . | . . . Impact . | . . . Kinetic . | . . . Secondary . | . . . Self-Inflicted Damage . | . . . Shots . | . . . Rammed . | . . . Targets Rammed 1 | . 1 . Kicked 1 | . 1 . Crushed . | . . . Highest Temperature 21 | . . 21 Average Temperature 11 | . . 11 Received Heat Transfer 330 | . 24 306 Siege Activations . | . . . Robots Corrupted . | . . . Combat Hostiles . | . . . Parts Fried . | . . . Impact Corruptions . | . . . Robots Melted . | . . . Combat Hostiles . | . . . Parts Melted . | . . . Heat Transferred . | . . . Parts Sabotaged . | . . . Parts Stolen . | . . . Parts Stripped . | . . . Power Chain Reactions . | . . . Missiles Intercepted . | . . . Alert | -11 -10 -10 ------- Run | Scr Mat Min Peak Influence 145 | . 145 104 Initial 19 | . . 19 Average 54 | . 65 50 Maximum Alert Level . | . . . Low Security (%) 100 | 100 100 100 Level 1 . | . . . Level 2 . | . . . Level 3 . | . . . Level 4 . | . . . Level 5 . | . . . High Security . | . . . Max Security . | . . . Squads Dispatched . | . . . Investigation . | . . . Extermination . | . . . Reinforcement . | . . . Assault . | . . . Garrison . | . . . Intercept . | . . . Searches Triggered . | . . . Construction Impeded . | . . . Haulers Reinforced . | . . . Active Scanning Responses . | . . . Cargo Convoy Interrupts . | . . . Stealth | -11 -10 -10 --------- Run | Scr Mat Min Distress Signals 2 | . 2 . Communications Jammed . | . . . Distress Signals . | . . . Times Spotted 27 | . 16 11 Peak Tracking Total 7 | . 7 4 Tactical Retreats 6 | . 3 3 Traps | -11 -10 -10 ------- Run | Scr Mat Min Traps Triggered . | . . . Indirectly . | . . . Trap Hack Attempts . | . . . Triggered . | . . . Disarmed . | . . . Reprogrammed . | . . . Reused 1 | . . 1 Traps Extracted . | . . . Installed 1 | . . 1 Triggered 1 | . . 1 Most Traps Carried 3 | . . 3 Machines | -11 -10 -10 ---------- Run | Scr Mat Min Machines Disabled . | . . . Max in Single Turn . | . . . Machines Sabotaged . | . . . Garrisons Compromised . | . . . Overloaded Fab Kills . | . . . Hacking | -11 -10 -10 --------- Run | Scr Mat Min Machines Accessed 5 | . 5 . Terminals 5 | . 5 . Fabricators . | . . . Repair Stations . | . . . Recycling Units . | . . . Scanalyzers . | . . . Garrison Access . | . . . Total Hacks 20 | . 20 . Successful 13 | . 13 . Failed 6 | . 6 . Catastrophic 2 | . 2 . Database Lockouts 1 | . 1 . Manual 8 | . 8 . Terminals 20 | . 20 . Fabricators . | . . . Repair Stations . | . . . Recycling Units . | . . . Scanalyzers . | . . . Garrison Access . | . . . Terminal Hacks 13 | . 13 . Record 5 | . 5 . Prototype ID Bank 1 | . 1 . Level Access Points 1 | . 1 . Emergency Access Points 1 | . 1 . Terminal Index 1 | . 1 . Alert Level 2 | . 2 . Locate Traps 1 | . 1 . Hauler Manifests 1 | . 1 . Fabricator Hacks . | . . . Repair Station Hacks . | . . . Recycling Unit Hacks . | . . . Scanalyzer . | . . . Garrison Access Hacks . | . . . Unauthorized Hacks . | . . . Terminals . | . . . Fabricators . | . . . Repair Stations . | . . . Recycling Units . | . . . Scanalyzers . | . . . Garrison Access . | . . . Data Cores Recovered . | . . . Used . | . . . Hacking Detections 5 | . 5 . Full Trace Events . | . . . Feedback Events . | . . . Feedback Blocked . | . . . Robot Schematics Acquired . | . . . Robots Built . | . . . Authchips . | . . . Time . | . . . Total Robot Build Rating . | . . . Part Schematics Acquired . | . . . Parts Built . | . . . Authchips . | . . . Time . | . . . Total Part Build Rating . | . . . Parts Repaired . | . . . Time . | . . . Parts Recycled . | . . . Recycled Matter . | . . . Retrieved Matter . | . . . Retrieved Components . | . . . Parts Scanalyzed . | . . . Part Schematics Acquired . | . . . Parts Damaged . | . . . Bothacking | -11 -10 -10 ------------ Run | Scr Mat Min Used RIF Installer . | . . . Robots Hacked . | . . . Non-combat . | . . . Combat . | . . . Robot Hacks Applied . | . . . Relay Couplers Released . | . . . Fabnet Peak Effective % . | . . . Robots Rewired . | . . . Allies Hacked . | . . . Hacks Repelled . | . . . Allies | -11 -10 -10 -------- Run | Scr Mat Min Total Allies . | . . . Largest Group . | . . . Highest-Rated Group . | . . . Highest-Rated Ally . | . . . Total Orders . | . . . Ally Attacks . | . . . Total Damage . | . . . Kills . | . . . Allies Corrupted . | . . . Allies Melted . | . . . Intel | -11 -10 -10 ------- Run | Scr Mat Min Robot Analysis Total . | . . . Derelict Logs Recovered 1 | . . 1 Drone Launches . | . . . Drone Recoveries . | . . . Exploration | -11 -10 -10 ------------- Run | Scr Mat Min Turns Passed 978 | 84 534 360 Spaces Moved 668 | 48 344 276 Core 7 | 7 . . Treads . | . . . Legs 661 | 41 344 276 Wheels . | . . . Hover . | . . . Flight . | . . . Fastest Speed 50 | 50 120 120 Average Speed 128 | 125 135 120 Slowest Speed 190 | 190 190 120 Overloaded Moves . | . . . Propulsion Burnouts . | . . . Robots Hopped . | . . . Cave-ins Triggered . | . . . Exploration Rate (%) 42 | 5 67 56 Regions Visited 2 Branch Regions 1 Pre-discovered Areas 1 | . . 1 Known Exits Taken . | . . . Unknown Exits Taken 2 | 1 1 . Scrap Searched 1 | . . 1 Spaces Dug . | . . . Terrain Destroyed . | . . . Melee . | . . . Projectile . | . . . AOE . | . . . Terrain Rammed . | . . . Walls Destroyed . | . . . Machines Disabled . | . . . Actions | -11 -10 -10 --------- Run | Scr Mat Min Total 749 | 61 388 300 Wait 17 | . 13 4 Move 666 | 47 343 276 Hop . | . . . Pick Up 16 | 4 7 5 Fast Attach 8 | 6 1 1 Attach 1 | . . 1 Detach . | . . . Swap 8 | . 5 3 Drop 10 | . 4 6 Fire 21 | 4 14 3 Melee . | . . . Ram . | . . . Kick 1 | . 1 . Crush . | . . . Escape Stasis . | . . . Rewire . | . . . Trap 1 | . . 1 Miscellaneous . | . . . Route ------- -11/Scrapyard -10/Materials (discovered 4 exits: *Mat x3 / [*Min]) -10/Mines (discovered 1 exit: *Mat) History --------- Turn | Location | Event 15 | -11/Scrapyard | Discovered new exit (range 16) 85 | -11/Scrapyard | Entered Materials 152 | -10/Materials | Discovered new exit (range 15) 266 | -10/Materials | Discovered new exit (range 13) 279 | -10/Materials | Discovered new exit (range 10) 316 | -10/Materials | Build established: Mutant 493 | -10/Materials | Discovered new exit (range 14) 519 | -10/Materials | Central database locked down 519 | -10/Materials | Identified exit to Materials 619 | -10/Materials | Entered Mines 668 | -10/Mines | Learned location of Zion (-7) 879 | -10/Mines | Discovered exit to Materials (range 15) 880 | -10/Mines | Found a hidden stash of uninstalled traps 949 | -10/Mines | Core integrity fell below 50% 965 | -10/Mines | Core integrity fell below 20% 977 | -10/Mines | Lost 4 parts (2n2w) 979 | -10/Mines | Destroyed by G-47 Trooper with Particle Gun Last Messages --------------- 00891_ Acquired Shock Trap. 00930_ A derelict emerges from the shadows: "Quick, help me dispose of these Unaware!" 00930_ G-34 Mercenary triggered Shock Trap. 00930_ The floor emits a surge of raw power. 00934_ UQ-TZ9(g): "Mission, incomplete...*fzzt*" 00934_ UQ-TZ9(g) destroyed. 00935_ Acquired Carbon-fiber Leg. 00938_ Critical hit (Burn: +37). 00942_ Aluminum Leg destroyed. 00944_ Assault Rifle destroyed. 00944_ Aluminum Leg destroyed. 00946_ Acquired Carbon-fiber Leg. 00946_ Assault Rifle destroyed. 00949_ G-34 Mercenary misfires. 00949_ Dropped Lgt. Ion Engine. 00952_ Acquired 47 matter. 00952_ Critical hit (Burn: +37). 00961_ R-06 Scavenger collects Terrain Scanner. 00972_ G-34 Mercenary misfires. Map ----- +----------------------------------------------------+ | ????????????????????# #?????????????????????????? | | ???????????????###### #?????????????????????????? | | ???##########?## ## ##????????????????????????? | | ??## ### #?????????????????????????? | | ??# # #?????????????????????????? | | ??# ## ## ### #?????????????????????? | | ??## ##### ## #?????????????????????? | | ???####???# ## #####?????????????????????? | | ??????????# ### #?????????????????????????? | | ?###??????## ##?# #?????????????????????????? | | ## ##??????# #### #?????????????????????????? | | # #??????# ## ![! #?????????????????????????? | | # ###????## ###[#####?????????????????????????? | | ##?#?#???####?# #?????????????????????????????? | | #####?????????# #?????????????????????????????? | | #????###### #????????####?????????????????? | | ## #????# ####????## ##????????????????? | | ## #????# ## ### ##???# ##???????????????? | | ### #????# ## ## #??## ##??????????????? | | ##?# #????# ## t #### #??????????????? | | #??# ##?#?# ## ## ## ####???????????? | | ##??# ##?## ### #???????????? | | #???# #?# ###u #???????????? | | #???# #?# #?## r ## #???????????? | | #?#?# ### ##??## ## #???????????? | | #???## ####????##@ ### #???????????? | | #????# ##????????# ##?# ???????????? | | #????# #?????????# ##??###???????????? | | #??#?## ##?????????# ####?????????????????? | | ####??## ##?????????## ##????#???????????????? | | ##??## #?????????## #???###???????????????? | | #????## ##???????## ##?# #####???????????? | | # #?????## ######### ## ##??????????? | | # #????#?## ### #??????????? | | # ########## #??????????? | | # ## ##### ## #??????????? | | ##?## ####ggg ##??????????? | | ##?## ##??# #???????????? | | #??## ##???# #??????????? | | ## ##???####????# ## #?????????? | | # #?###????????????# #?# #????????? | | # """ #####?#?#???#???## #?? #????????? | | ## """ ##??????## ## ##?# ##????????? | | ## """ #????### < ##?# ####?????????? | | # #??????# #######????????????? | | ####??????## ####! ###??????????????? | | ##???????#??####???##* =%#??????????????? | | ######?#?????????????????# [!*#?????????????? | | ####????????????????????????# #?????????????? | | ????????????????????????????## ##?????????????? | +----------------------------------------------------+ Best States ------------- Heat Dissipation 25 Energy Generation 18 Energy Capacity 250 Matter Stores 261 Matter Capacity 300 Sight Range 16 Terrain Scan Range 14 Terrain Scan Density 10 ECM Strength 1 Evasion (%) 55 Item Schematics ----------------- None Robot Schematics ------------------ None Fabricated ------------ Nothing Alien Tech Used ----------------- None Achievements -------------- None Challenges ------------ None Game ------ Seed CoolantArmorThruster Manual? 0 Play Time 00:24:05 Cumulative 20.6 hours Start 2022.05.14 @ 10:06:07 End 2022.05.14 @ 10:30:44 Sessions 1 Manual Loads 0 Difficulty Rogue Special Mode None Game No. 11 Rogue 9 Adventurer 0 Explorer 2 Win Type - Total 0 Types 0/0/0/0/0/0/0/0/0 Lore% 21 Gallery% 20 Achievement% 15 Wizard Run 0 Options --------- ASCII 0 Keyboard 0 Movement Numpad Keybinds 0 Fullscreen 1 Font 18/SmallcapsGlow Map View 76x50 Tactical HUD 1 Map Filters NONE Filters NONE Steam 1 RUN: 4431c9a0-ddfd-4b6d-91e4-d5b5c0f2bb39